bitfinex-derivatives/quotes_SOLF0:USTF0_20260217
["timestamp","ask_amount","ask_price","bid_price","bid_amount"]
[1771338849213,5.94381471,85.03,84.958,10.54577426]
[1771338849815,10.5898,85.034,84.976,21.14285679]
[1771338850526,10.5884,85.045,84.977,10.52822337]
[1771338850915,5.94381471,85.05,84.977,10.52822337]
[1771338851222,10.5873,85.055,84.991,10.52822337]
[1771338851621,10.5862,85.064,85.004,10.5934]
[1771338851824,5.94381471,85.07,85.004,10.5934]
[1771338852219,5.94381471,85.07,84.998,10.52840653]
[1771338852421,8.66287643,85.099,84.967,21.1962]
[1771338852422,5.94381471,85.09,85.011,10.52872932]
[1771338852614,5.94381471,85.11,85.031,10.52872932]
[1771338852819,5.94381471,85.11,85.033,10.52872932]
[1771338852820,10.5818,85.099,85.033,10.52872932]
[1771338853015,8.63743138,85.151,85.051,10.52872932]
[1771338853218,5.94381471,85.15,85.07,5.94381471]
[1771338853418,10.5777,85.132,85.07,16.52901471]
[1771338853618,5.94381471,85.15,85.071,10.52891165]
[1771338853818,186.14558795,85.223,85.052,100.5]
[1771338853819,5.94381471,85.17,85.107,10.5806]
[1771338854121,10.5725,85.174,85.09,5.94381471]
[1771338854122,10.5725,85.174,85.108,10.52891165]
[1771338854321,5.94381471,85.19,85.13,10.5778]
[1771338854527,5.94381471,85.19,85.111,10.55871458]
[1771338854728,5.94381471,85.19,85.11,5.94381471]
[1771338854729,5.94381471,85.19,85.12,110.97871458]
[1771338854917,5.94381471,85.19,85.11,5.94381471]
[1771338855122,5.94381471,85.17,85.095,110.89871458]
[1771338855637,5.94381471,85.19,85.111,10.55912682]
[1771338855830,5.94381471,85.19,85.11,5.94381471]
[1771338855831,5.94381471,85.19,85.113,10.55912682]
[1771338856123,5.94381471,85.19,85.043,164.7123]
[1771338856124,14.48312499,85.2,85.09,25.04225181]
[1771338856322,14.48312499,85.18,85.091,110.85912682]
[1771338856725,74.08,85.221,85.094,10.60565044]
[1771338857031,14.48312499,85.2,85.096,10.60565044]
[1771338857434,10.5739,85.162,85.096,10.60565044]
[1771338857929,10.5739,85.162,85.097,10.5819]
[1771338858123,14.48312499,85.18,85.097,10.6060113]
[1771338858124,10.5725,85.173,85.097,10.6060113]
[1771338858721,14.48312499,85.2,85.09,14.48312499]
[1771338858924,14.48312499,85.16,85.063,10.5006994]
[1771338859221,14.48312499,85.16,85.07,10.5852]
[1771338859625,14.48312499,85.16,85.071,10.50114373]
[1771338859831,14.48312499,85.16,85.075,10.50114373]
[1771338860324,10.5742,85.16,85.089,10.50338985]
[1771338860626,14.48312499,85.18,85.091,10.50338985]
[1771338860830,74.06,85.23,85.091,10.50338985]
[1771338860831,14.48312499,85.2,85.091,10.50338985]
[1771338861333,10.5712,85.184,85.111,10.50338985]
[1771338861529,14.48312499,85.21,85.111,10.50338985]
[1771338861724,14.48312499,85.21,85.113,10.50382289]
[1771338862032,238.4035,85.235,85.113,10.50382289]
[1771338862033,14.48312499,85.19,85.113,10.50382289]
[1771338862229,14.48312499,85.19,85.089,10.50382289]
[1771338862428,10.575,85.153,85.089,10.50382289]
[1771338863233,10.575,85.153,85.091,10.50891728]
[1771338863734,10.5736,85.165,85.095,10.50933621]
[1771338864132,14.48312499,85.19,85.095,10.50933621]
[1771338864434,14.48312499,85.17,85.095,10.50933621]
[1771338864731,14.48312499,85.17,85.085,99.98]
[1771338864732,10.5725,85.173,85.108,10.50425648]
[1771338865227,74.04,85.222,85.054,21.1745]
[1771338865228,14.48312499,85.22,85.129,10.50425648]
[1771338865634,14.48312499,85.2,85.129,10.50425648]
[1771338865827,10.5735,85.165,85.091,10.50467007]
[1771338866138,14.48312499,85.18,85.091,10.50467007]
[1771338866837,10.5749,85.154,85.094,10.49938654]
[1771338867232,10.5738,85.163,85.1,10.49938654]
[1771338867436,14.48312499,85.18,85.1,10.49938654]
[1771338868228,14.48312499,85.18,85.07,14.48312499]
[1771338868229,14.48312499,85.18,85.08,10.4997961]
[1771338868435,14.48312499,85.16,85.051,10.52510669]
[1771338868637,14.48312499,85.16,85.05,14.48312499]
[1771338868638,10.5768,85.139,85.078,10.52510669]
[1771338868935,14.48312499,85.16,85.078,10.52510669]
[1771338869130,14.48312499,85.18,85.088,10.52510669]
[1771338869635,14.48312499,85.18,85.09,10.52548778]
[1771338869840,14.48312499,85.2,85.127,10.52548778]
[1771338870336,14.48312499,85.22,85.139,10.52548778]
[1771338870927,10.5691,85.201,85.139,10.52548778]
[1771338871328,10.569,85.201,85.141,10.5765]
[1771338871529,14.48312499,85.22,85.139,10.52548778]
[1771338871931,10.569,85.202,85.14,10.5765]
[1771338872637,10.5678,85.212,85.149,21.00578599]
[1771338873637,10.5678,85.212,85.156,10.5745]
[1771338874140,10.5678,85.212,85.15,10.43082537]
[1771338874342,10.5678,85.212,85.147,10.5756]
[1771338874343,21.70439675,85.22,85.131,10.43086699]
[1771338874542,21.70439675,85.22,85.131,109.91086699]
[1771338874742,21.70439675,85.22,85.132,10.43086699]
[1771338875135,21.70439675,85.22,85.111,10.43086699]
[1771338875739,10.5705,85.189,85.131,10.5777]
[1771338875940,21.70439675,85.22,85.131,10.43129037]
[1771338876144,21.70439675,85.22,85.132,10.43129037]
[1771338876340,21.70439675,85.22,85.131,99.4]
[1771338876341,21.70439675,85.24,85.154,10.43129037]
[1771338876643,21.70439675,85.24,85.155,10.42973388]
[1771338877337,74.0,85.279,85.155,10.42973388]
[1771338877552,21.70439675,85.26,85.155,10.42973388]
[1771338877851,5.90330656,85.24,85.161,10.43015247]
[1771338878160,5.90330656,85.26,85.161,10.43015247]
[1771338878447,5.90330656,85.28,85.181,10.43015247]
[1771338878637,5.90330656,85.26,85.181,10.43015247]
[1771338879045,5.90330656,85.24,85.181,10.43015247]
[1771338880446,5.90330656,85.24,85.173,10.5725]
[1771338880650,10.5654,85.231,85.173,10.5725]
[1771338881337,73.98,85.284,85.18,5.90330656]
[1771338881338,5.90330656,85.26,85.18,5.90330656]
[1771338881541,5.90330656,85.26,85.181,10.59460581]
[1771338881743,16.46500656,85.26,85.2,10.5691]
[1771338882544,10.5628,85.252,85.191,10.5702]
[1771338883052,10.5622,85.257,85.199,10.5692]
[1771338883247,5.90330656,85.26,85.184,10.59400447]
[1771338883639,10.5655,85.23,85.171,10.5727]
[1771338884241,10.5655,85.23,85.179,10.5717]
[1771338884441,10.5655,85.23,85.17,5.90330656]
[1771338884845,10.5655,85.23,85.17,10.5728]
[1771338885045,10.5667,85.22,85.17,10.5728]
[1771338885248,5.90330656,85.24,85.192,21.22590325]
[1771338885548,5.90330656,85.26,85.192,10.65580325]
[1771338885853,164.1243,85.349,85.151,199.793]
[1771338885854,5.90330656,85.31,85.231,10.6560358]
[1771338886361,5.90330656,85.32,85.246,10.64481502]
[1771338886749,5.90330656,85.32,85.23,5.90330656]
[1771338887144,10.5582,85.289,85.232,10.5652]
[1771338887652,5.90330656,85.3,85.21,5.90330656]
[1771338887849,10.5595,85.278,85.221,10.5665]
[1771338888053,5.90330656,85.3,85.221,10.5665]
[1771338888350,5.90330656,85.28,85.202,10.64505074]
[1771338888942,10.5629,85.251,85.202,10.64505074]
[1771338889347,5.90330656,85.26,85.181,10.64982665]
[1771338889546,73.94,85.294,85.183,10.5712]
[1771338889547,5.90330656,85.24,85.183,10.5712]
[1771338889942,5.90330656,85.24,85.16,16.55313321]
[1771338890144,5.90330656,85.24,85.16,10.64982665]
[1771338890854,5.90330656,85.25,85.16,10.64982665]
[1771338890855,5.90330656,85.22,85.16,10.64982665]
[1771338891459,10.5668,85.219,85.165,10.5735]
[1771338891759,5.90330656,85.22,85.14,5.90330656]
[1771338891760,5.90330656,85.22,85.141,10.61110935]
[1771338892151,10.5677,85.212,85.154,10.5748]
[1771338892454,5.90330656,85.22,85.141,10.61110935]
[1771338892657,5.90330656,85.22,85.153,10.5749]
[1771338894759,10.5674,85.214,85.153,10.5749]
[1771338895061,5.90330656,85.22,85.144,21.17794195]
[1771338895255,10.5657,85.229,85.144,10.60194195]
[1771338895465,10.5657,85.229,85.161,10.60194195]
[1771338895958,10.5657,85.229,85.17,10.60218129]
[1771338896360,5.90330656,85.26,85.181,10.61048052]
[1771338897060,10.5638,85.244,85.181,10.61048052]
[1771338897260,5.90330656,85.26,85.185,10.571]
[1771338897557,5.90330656,85.26,85.186,10.61070796]
[1771338898256,5.90330656,85.26,85.187,10.61070796]
[1771338898458,5.90330656,85.25,85.187,10.61070796]
[1771338898958,21.1179,85.283,85.094,164.6129]
[1771338898959,5.90330656,85.23,85.161,10.60474542]
[1771338899154,8.576757,85.28,85.161,10.60474542]
[1771338899456,5.90330656,85.25,85.163,10.60474542]
[1771338899662,10.5666,85.221,85.166,10.5733]
[1771338900058,10.5656,85.229,85.175,21.17717098]
[1771338900261,5.90330656,85.25,85.176,10.60497098]
[1771338900464,5.90330656,85.25,85.104,21.1621]
[1771338900465,4.56886252,85.229,85.104,21.1621]
[1771338900669,4.56886252,85.174,85.08,5.90330656]
[1771338900851,5.90330656,85.15,85.08,5.90330656]
[1771338901054,4.56886252,85.149,85.007,21.54001633]
[1771338901259,5.90330656,85.15,85.008,98.04]
[1771338901260,5.90330656,85.11,85.008,98.04]
[1771338901459,5.90330656,85.12,85.05,5.90330656]
[1771338901763,5.90330656,85.17,85.05,5.90330656]
[1771338901953,4.56859315,85.149,85.07,5.90330656]
[1771338902154,4.56859315,85.149,85.05,5.90330656]
[1771338902359,4.56859315,85.149,85.051,98.1]
[1771338902554,4.56859315,85.149,85.052,7.48563297]
[1771338902860,4.56859315,85.149,85.07,5.90330656]
[1771338903067,5.90330656,85.17,85.091,7.48563297]
[1771338903264,5.90330656,85.19,85.111,7.48563297]
[1771338903462,5.90330656,85.15,85.078,7.48563297]
[1771338903665,5.90330656,85.17,85.091,7.48563297]
[1771338903867,4.71338417,85.189,85.091,7.48563297]
[1771338904373,4.71338417,85.169,85.091,7.48563297]
[1771338904571,4.71338417,85.169,85.094,10.5822]
[1771338904754,4.71338417,85.169,85.091,7.48563297]
[1771338904955,5.90330656,85.15,85.091,7.48563297]
[1771338905572,4.71338417,85.169,85.091,7.48563297]
[1771338905864,10.5732,85.168,85.104,10.581]
[1771338906064,4.71338417,85.169,85.104,10.581]
[1771338906970,4.71338417,85.169,85.091,7.48563297]
[1771338907468,4.71338417,85.169,85.091,18.06833297]
[1771338907469,10.5753,85.151,85.091,18.06833297]
[1771338907866,4.71338417,85.169,85.091,7.48563297]
[1771338908182,10.84752757,85.223,85.05,170.60120656]
[1771338908183,10.28041879,85.19,85.111,7.48563297]
[1771338908372,10.28041879,85.19,85.059,35.29]
[1771338908373,5.90330656,85.17,85.101,7.48563297]
[1771338908679,5.90330656,85.17,85.08,5.90330656]
[1771338908680,4.35987683,85.167,85.08,5.90330656]
[1771338908880,4.35987683,85.167,85.08,13.38893953]
[1771338909080,5.90330656,85.15,85.08,13.38893953]
[1771338909276,5.90330656,85.15,85.083,7.48563297]
[1771338909984,16.47870656,85.15,85.085,10.5834]
[1771338910776,10.5761,85.145,85.085,10.5834]
[1771338910984,10.5761,85.145,85.083,7.48563297]
[1771338910985,4.3519343,85.149,85.083,7.48563297]
[1771338911576,10.25544902,85.17,85.083,7.48563297]
[1771338911774,5.90330656,85.19,85.101,7.48563297]
[1771338911977,4.35214246,85.189,85.101,7.48563297]
[1771338912579,10.5722,85.176,85.106,7.48563297]
[1771338912785,4.35214246,85.189,85.106,7.48563297]
[1771338913173,14.93125387,85.186,85.116,7.48563297]
[1771338913378,4.36035387,85.186,85.116,7.48563297]
[1771338913681,10.572,85.177,85.117,10.5794]
[1771338914783,10.5731,85.168,85.107,10.5807]
[1771338914984,4.36035387,85.186,85.1,5.90330656]
[1771338914985,4.36035387,85.186,85.101,7.2888601]
[1771338915684,5.90330656,85.2,85.101,7.2888601]
[1771338915685,4.36550957,85.179,85.101,7.2888601]
[1771338916687,4.36550957,85.179,85.121,10.5789]
[1771338916987,4.36550957,85.179,85.101,7.2888601]
[1771338917183,10.5727,85.172,85.111,10.5801]
[1771338917384,10.5727,85.172,85.101,7.2888601]
[1771338917385,4.36550957,85.179,85.101,7.2888601]
[1771338917783,10.5732,85.168,85.11,10.5803]
[1771338917986,4.36550957,85.179,85.101,7.2888601]
[1771338918381,10.5721,85.177,85.118,10.5793]
[1771338919089,4.37315589,85.199,85.128,7.2888601]
[1771338919587,4.37315589,85.199,85.1,5.90330656]
[1771338919588,4.37315589,85.199,85.108,7.2888601]
[1771338919886,4.37323805,85.179,85.108,7.2888601]
[1771338920186,10.5736,85.165,85.109,10.5804]
[1771338920586,4.37323805,85.179,85.109,7.2888601]
[1771338920883,4.35727449,85.203,85.128,7.2888601]
[1771338921884,10.5709,85.187,85.128,7.2888601]
[1771338922387,10.5717,85.18,85.131,10.5777]
[1771338923285,10.5717,85.18,85.128,7.2888601]
[1771338923976,10.5697,85.196,85.142,7.2888601]
[1771338924185,5.90330656,85.22,85.142,7.2888601]
[1771338924780,10.5678,85.212,85.154,10.5748]
[1771338924976,5.90330656,85.22,85.155,7.2888601]
[1771338925183,5.90330656,85.22,85.14,5.90330656]
[1771338925184,10.5651,85.233,85.178,10.5718]
[1771338925486,5.90330656,85.24,85.179,7.2888601]
[1771338925882,4.38624806,85.259,85.186,7.2888601]
[1771338926892,10.5643,85.24,85.186,7.2888601]
[1771338927184,5.90330656,85.24,85.177,10.572]
[1771338927384,4.38624806,85.259,85.181,7.2888601]
[1771338927582,4.37881196,85.279,85.181,7.2888601]
[1771338928287,4.37881196,85.279,85.221,10.5665]
[1771338928588,5.90330656,85.26,85.206,7.2888601]
[1771338928791,5.90330656,85.26,85.18,5.90330656]
[1771338928792,4.38236229,85.259,85.181,7.2888601]
[1771338928991,73.96,85.288,85.181,7.2888601]
[1771338928992,10.28566885,85.24,85.181,7.2888601]
[1771338929186,4.38236229,85.26,85.161,7.2888601]
[1771338929392,5.90330656,85.25,85.181,7.2888601]
[1771338929589,4.38243126,85.249,85.17,5.90330656]
[1771338929788,4.38243126,85.229,85.159,7.2888601]
[1771338930395,10.5669,85.218,85.159,17.8630601]
[1771338930798,10.5669,85.218,85.1,5.90330656]
[1771338930799,4.38243126,85.229,85.135,7.2888601]
[1771338930987,21.1224,85.265,85.1,5.90330656]
[1771338930988,10.5658,85.227,85.168,7.2888601]
[1771338931183,5.90330656,85.24,85.168,7.2888601]
[1771338931390,8.70242593,85.264,85.147,7.2888601]
[1771338931391,4.42533948,85.219,85.147,7.2888601]
[1771338931596,10.5693,85.199,85.147,7.2888601]
[1771338931794,4.42543733,85.199,85.126,7.2888601]
[1771338932291,10.5713,85.183,85.126,7.2888601]
[1771338932597,4.42543733,85.199,85.126,7.2888601]
[1771338933600,5.90330656,85.2,85.146,7.2888601]
[1771338933789,5.90330656,85.22,85.146,7.2888601]
[1771338934186,10.5683,85.207,85.155,10.5747]
[1771338934389,10.5683,85.207,85.146,7.2888601]
[1771338934697,5.90330656,85.22,85.146,7.2888601]
[1771338935090,5.90330656,85.22,85.154,7.2888601]
[1771338935291,4.43285933,85.199,85.131,7.2888601]
[1771338935893,4.43296105,85.189,85.111,7.2888601]
[1771338936198,5.9112973,85.17,85.111,7.2888601]
[1771338936398,4.43296105,85.189,85.111,7.2888601]
[1771338936893,4.40079047,85.159,85.081,7.2888601]
[1771338937092,4.40079047,85.159,85.085,7.2888601]
[1771338937296,5.9112973,85.14,85.06,5.9112973]
[1771338937495,4.40079206,85.139,85.063,7.2888601]
[1771338937793,5.9112973,85.14,85.071,7.2888601]
[1771338938097,4.40090092,85.139,85.071,7.2888601]
[1771338938297,4.40090092,85.139,84.992,21.54001633]
[1771338938298,4.40090092,85.139,85.051,7.2888601]
[1771338938498,10.5805,85.109,85.051,7.2888601]
[1771338938691,5.9112973,85.12,85.051,7.2888601]
[1771338939089,16.4903973,85.12,85.061,7.2888601]
[1771338939690,16.4903973,85.12,85.05,5.9112973]
[1771338939691,10.5777,85.131,85.062,10.5862]
[1771338939896,4.40090092,85.139,85.063,7.2888601]
[1771338940298,10.5799,85.114,85.063,7.2888601]
[1771338940497,5.9112973,85.12,85.063,7.2888601]
[1771338941199,10.5792,85.119,85.063,7.2888601]
[1771338941794,5.9112973,85.12,85.065,7.2888601]
[1771338942507,5.9112973,85.12,84.974,164.8455]
[1771338942508,4.48218323,85.119,85.045,7.2888601]
[1771338943090,10.5803,85.111,85.047,7.2888601]
[1771338943290,4.48218323,85.14,85.051,7.2888601]
[1771338943291,10.39348053,85.14,85.051,7.2888601]
[1771338943492,178.792259,85.183,85.051,7.2888601]
[1771338943493,4.48228014,85.119,85.051,7.2888601]
[1771338943894,5.9112973,85.14,85.051,7.2888601]
[1771338944094,5.9112973,85.14,85.073,7.2888601]
[1771338944502,4.47981354,85.139,85.073,7.2888601]
[1771338944707,4.47981354,85.139,85.05,5.9112973]
[1771338944708,10.5803,85.111,85.052,7.09734841]
[1771338945101,10.5813,85.102,85.052,7.09734841]
[1771338945306,4.47977833,85.119,85.052,7.09734841]
[1771338946103,5.9112973,85.1,85.039,10.5891]
[1771338946300,5.9112973,85.1,85.04,7.09734841]
[1771338946609,5.9112973,85.1,85.011,7.09734841]
[1771338946610,4.50343071,85.099,85.011,7.09734841]
[1771338947406,5.9112973,85.08,85.011,7.09734841]
[1771338947809,16.4953973,85.08,85.012,17.68974841]
[1771338948009,16.4953973,85.08,85.012,7.09734841]
[1771338948206,5.9112973,85.1,85.012,7.09734841]
[1771338948511,4.50352428,85.099,85.012,7.09734841]
[1771338949001,5.9112973,85.08,85.012,7.09734841]
[1771338949304,5.9112973,85.08,85.033,10.5898]
[1771338949505,4.5296209,85.081,85.033,10.5898]
[1771338949807,10.5832,85.087,85.033,10.5898]
[1771338950108,10.582,85.097,85.041,10.5888]
[1771338950298,4.52957783,85.099,85.034,7.09734841]
[1771338950501,4.52957783,85.099,85.011,7.09734841]
[1771338950709,4.52957783,85.099,85.032,10.59]
[1771338951099,4.52957783,85.099,85.011,7.09734841]
[1771338951100,4.51148981,85.081,84.99,5.9112973]
[1771338951409,5.9112973,85.06,84.991,7.09734841]
[1771338951600,10.5869,85.057,85.001,10.5938]
[1771338951799,10.5869,85.057,84.991,7.09734841]
[1771338951800,4.51155001,85.059,84.991,7.09734841]
[1771338952007,10.42284731,85.04,84.97,7.09734841]
[1771338952203,5.9112973,85.06,84.997,10.5943]
[1771338952511,5.9112973,85.06,84.997,6.96026609]
[1771338953011,10.5849,85.074,85.016,10.5919]
[1771338953408,10.44359235,85.08,85.024,10.591]
[1771338953907,10.5842,85.079,85.024,10.591]
[1771338955009,4.56197475,85.079,85.015,6.96026609]
[1771338955511,10.5851,85.072,85.015,6.96026609]
[1771338955708,10.5851,85.072,84.98,21.1929]
[1771338955709,5.9112973,85.06,84.995,6.96026609]
[1771338956301,5.9112973,85.06,85.014,10.5923]
[1771338956509,10.5855,85.069,85.0,5.9112973]
[1771338956709,10.5855,85.069,85.001,6.96026609]
[1771338957106,5.9112973,85.1,85.031,6.96026609]
[1771338957409,4.56624023,85.099,85.031,6.96026609]
[1771338957712,4.56624023,85.099,85.02,5.9112973]
[1771338957713,10.5822,85.095,85.033,6.96026609]
[1771338957906,4.56624023,85.099,85.033,6.96026609]
[1771338958505,4.60761762,85.118,85.045,10.5883]
[1771338958709,4.60761762,85.118,85.033,6.96026609]
[1771338958710,4.60761762,85.118,85.046,6.96026609]
[1771338958910,4.60761762,85.138,85.046,6.96026609]
[1771338959310,5.9112973,85.12,85.063,6.96026609]
[1771338959705,10.5809,85.106,85.044,10.5885]
[1771338959908,10.5809,85.106,85.041,6.96026609]
[1771338960109,4.60765321,85.138,85.041,6.96026609]
[1771338960306,4.60765321,85.138,85.063,6.96026609]
[1771338960615,5.9112973,85.14,85.063,6.96026609]
[1771338960814,4.50505692,85.157,85.08,5.9112973]
[1771338961010,4.50505692,85.157,85.081,6.96026609]
[1771338961516,15.08229345,85.135,85.075,10.5846]
[1771338961707,15.08229345,85.135,85.06,5.9112973]
[1771338961708,4.50509345,85.135,85.061,6.96026609]
[1771338962021,4.50509345,85.119,85.041,6.96026609]
[1771338962614,5.9112973,85.12,85.065,10.5859]
[1771338962816,5.9112973,85.12,85.061,6.96026609]
[1771338963118,10.31313195,85.14,85.061,6.96026609]
[1771338963313,4.40183465,85.139,85.061,6.96026609]
[1771338963711,10.578,85.129,85.072,10.585]
[1771338964111,5.9112973,85.12,85.041,6.96026609]
[1771338964321,10.5794,85.118,85.066,10.5857]
[1771338964514,4.40299541,85.117,85.041,6.96026609]
[1771338964713,5.9112973,85.1,85.041,6.96026609]
[1771338964914,5.9112973,85.1,85.027,10.5906]
[1771338964915,10.5832,85.088,85.027,10.5906]
[1771338965114,10.5832,85.088,85.016,6.96026609]
[1771338965115,4.40299541,85.079,85.016,6.96026609]
[1771338965415,4.40299541,85.102,85.043,10.5886]
[1771338965719,21.1555,85.131,85.036,6.96026609]
[1771338965720,4.40296176,85.099,85.036,6.96026609]
[1771338966124,4.40296176,85.12,85.041,6.96026609]
[1771338966414,4.40296176,85.142,85.041,6.96026609]
[1771338966722,4.40296176,85.142,85.04,5.9112973]
[1771338966723,4.40296176,85.142,85.061,6.96026609]
[1771338967015,5.9112973,85.15,85.061,6.96026609]
[1771338967016,10.5797,85.115,85.061,6.96026609]
[1771338967219,4.40651874,85.119,85.041,6.96026609]
[1771338967421,5.9112973,85.1,85.041,6.96026609]
[1771338967616,4.40651874,85.119,85.041,6.96026609]
[1771338967806,5.9112973,85.12,85.04,5.9112973]
[1771338967807,5.9112973,85.12,85.076,10.5845]
[1771338968007,4.4065639,85.139,85.061,6.96026609]
[1771338968608,5.9112973,85.1,85.018,6.96026609]
[1771338968815,4.44173617,85.114,85.041,6.96026609]
[1771338969009,10.58,85.113,85.057,10.5868]
[1771338969219,5.9112973,85.1,85.041,6.96026609]
[1771338969718,10.5821,85.096,85.044,10.5885]
[1771338969914,5.9112973,85.1,85.041,6.96026609]
[1771338970315,4.44173617,85.113,85.041,6.96026609]
[1771338970715,10.581,85.105,85.053,10.5874]
[1771338970922,10.581,85.105,85.041,6.96026609]
[1771338970923,5.9112973,85.12,85.041,6.96026609]
[1771338971519,4.40270643,85.119,85.054,10.5872]
[1771338971714,4.40270643,85.119,85.041,6.96026609]
[1771338972119,5.9112973,85.1,85.041,6.96026609]
[1771338972421,4.42531841,85.079,85.001,6.96026609]
[1771338972619,5.9112973,85.08,85.001,6.96026609]
[1771338972818,5.9112973,85.08,85.02,10.5915]
[1771338972819,10.5847,85.075,85.02,10.5915]
[1771338973014,5.9112973,85.08,85.02,10.5915]
[1771338973215,4.42537158,85.079,85.01,10.5927]
[1771338974221,4.42537158,85.079,85.003,6.96026609]
[1771338974818,4.42537158,85.079,85.027,10.5905]
[1771338975013,4.42537158,85.079,85.003,6.96026609]
[1771338975417,4.47980017,85.069,85.003,6.96026609]
[1771338975921,10.5872,85.055,85.004,10.5935]
[1771338976425,74.04,85.087,84.981,7.40718487]
[1771338976426,4.46591441,85.049,84.981,7.40718487]
[1771338977028,10.5899,85.034,84.982,10.5963]
[1771338977224,10.5899,85.034,84.981,7.40718487]
[1771338978625,10.591,85.025,84.981,7.40718487]
[1771338978829,10.591,85.025,84.972,10.5974]
[1771338979222,10.5922,85.015,84.963,10.5985]
[1771338979616,5.9112973,85.03,84.94,5.9112973]
[1771338979617,4.50035417,85.029,84.945,10.6008]
[1771338979823,10.5942,84.999,84.942,7.40718487]
[1771338980124,4.50035417,85.009,84.942,7.40718487]
[1771338980431,5.9112973,85.03,84.942,7.40718487]
[1771338980618,5.9112973,85.01,84.942,7.40718487]
[1771338981426,5.9112973,85.01,84.95,7.40718487]
[1771338981633,5.9112973,85.05,84.95,7.40718487]
[1771338981634,5.9112973,85.05,84.961,7.40718487]
[1771338982130,5.9112973,85.05,84.95,101.5512973]
[1771338982131,5.9112973,85.05,84.991,7.40718487]
[1771338982523,16.4966973,85.07,85.009,7.40718487]
[1771338983438,10.5841,85.08,85.022,10.5912]
[1771338983637,5.9112973,85.09,85.01,5.9112973]
[1771338983830,10.583,85.089,85.04,10.589]
[1771338984535,10.583,85.089,85.034,7.40718487]
[1771338984731,10.584,85.081,85.034,7.40718487]
[1771338984935,10.584,85.081,85.012,7.40718487]
[1771338985324,10.5851,85.072,85.012,7.40718487]
[1771338985626,5.9112973,85.08,85.012,7.40718487]
[1771338985930,10.84752757,85.121,84.95,27.45131363]
[1771338985931,10.5873,85.054,84.993,7.40718487]
[1771338986131,4.4352479,85.059,84.993,7.40718487]
[1771338986332,5.9112973,85.06,84.993,7.40718487]
[1771338986533,5.9112973,85.06,85.003,7.40718487]
[1771338987844,5.9112973,85.04,84.982,7.40718487]
[1771338988234,10.5883,85.047,84.982,7.40718487]
[1771338988439,4.42543152,85.059,84.982,7.40718487]
[1771338990041,10.5883,85.047,84.991,10.5951]
[1771338990236,74.06,85.077,84.95,5.9112973]
[1771338990237,4.48866642,85.039,84.962,7.40718487]
[1771338991150,10.5904,85.029,84.964,7.40718487]
[1771338991344,4.48866642,85.039,84.964,7.40718487]
[1771338991545,5.9112973,85.04,84.964,7.40718487]
[1771338991747,5.9112973,85.04,84.971,7.40718487]
[1771338992646,10.5905,85.029,84.977,7.40718487]
[1771338992848,10.51465751,85.04,84.977,7.40718487]
[1771338993246,10.51465751,85.04,84.921,35.24]
[1771338993247,4.60336021,85.039,84.958,7.40718487]
[1771338993451,10.5904,85.029,84.965,10.5983]
[1771338994346,10.5904,85.029,84.958,7.40718487]
[1771338994347,10.5904,85.029,84.972,10.5974]
[1771338994943,10.5893,85.038,84.982,7.40718487]
[1771338995552,4.5848973,85.037,84.951,7.40718487]
[1771338996542,10.59,85.033,84.97,7.40718487]
[1771338997436,10.59,85.033,84.95,5.9112973]
[1771338997437,4.59009804,85.039,84.967,7.40718487]
[1771338997852,10.5921,85.016,84.967,7.40718487]
[1771338998444,10.591,85.025,84.976,10.597]
[1771338998651,4.59009804,85.039,84.967,7.40718487]
[1771338998943,10.5885,85.045,84.999,10.5941]
[1771338999247,10.5885,85.045,84.96,5.93340141]
[1771338999248,10.5885,85.045,84.99,7.40718487]
[1771338999739,5.93340141,85.05,84.99,7.40718487]
[1771338999945,10.5874,85.054,84.99,7.40718487]
[1771339000348,4.56458376,85.058,84.99,7.40718487]
[1771339000550,4.60328545,85.049,84.96,5.93340141]
[1771339000852,4.60328545,85.049,84.961,7.40718487]
[1771339001046,4.60328545,85.049,84.996,10.5945]
[1771339001249,4.60328545,85.049,84.979,7.40718487]
[1771339001638,4.60328545,85.049,84.981,10.5964]
[1771339001854,21.1702,85.072,84.961,7.40718487]
[1771339001855,5.93340141,85.03,84.961,7.40718487]
[1771339002055,4.6035122,85.029,84.961,7.40718487]
[1771339002240,4.6035122,85.009,84.937,7.40718487]
[1771339002840,10.5944,84.997,84.953,10.5999]
[1771339003041,4.6035122,85.009,84.937,7.40718487]
[1771339003247,74.06,85.038,84.918,21.2083]
[1771339003248,5.93340141,85.03,84.941,7.40718487]
[1771339003448,10.53745539,85.03,84.941,7.40718487]
[1771339003953,10.53745539,85.03,84.94,5.93340141]
[1771339003954,10.53745539,85.03,84.965,7.40718487]
[1771339004547,10.82384898,85.082,84.965,7.40718487]